fUSD/lending_fUSD_20251217
["ID","MTS","AMOUNT","RATE_DAILY","PERIOD"]
[398940576,1766010644177,-2000.0,0.00016149,2]
[398940578,1766010644186,-151.0,0.00016149,2]
[398940579,1766010644197,-2000.0,0.00016149,2]
[398940580,1766010644210,-2000.0,0.00016149,2]
[398940581,1766010644220,-2000.0,0.00016149,2]
[398940582,1766010644230,-533.88981491,0.00016149,2]
[398940583,1766010644240,-2000.0,0.00016149,2]
[398940584,1766010644250,-2000.0,0.00016149,2]
[398940586,1766010644261,-620.0,0.00016149,2]
[398940589,1766010644271,-2000.0,0.00016149,2]
[398940591,1766010644282,-2000.0,0.00016149,2]
[398940593,1766010644291,-2000.0,0.00016149,2]
[398940595,1766010644301,-1000.0,0.00016149,2]
[398940597,1766010644312,-2000.0,0.00016149,2]
[398940599,1766010644324,-603.98998006,0.00016149,2]
[398940601,1766010644334,-151.0,0.00016149,2]
[398940603,1766010644345,-500.0,0.00016149,2]
[398940604,1766010644355,-9000.0,0.00016149,2]
[398940606,1766010644366,-500.0,0.00016149,2]
[398940609,1766010644376,-263.31566499,0.00016149,2]
[398940610,1766010644386,-250.0,0.00016149,2]
[398940613,1766010644396,-250.0,0.00016149,2]
[398940614,1766010644406,-250.0,0.00016149,2]
[398940615,1766010644416,-2345.0,0.00016149,2]
[398940616,1766010644426,-151.0,0.00016149,2]
[398940617,1766010644436,-250.0,0.00016149,2]
[398940618,1766010644445,-300.0,0.00016149,2]
[398940619,1766010644456,-250.0,0.00016149,2]
[398940620,1766010644465,-250.0,0.00016149,2]
[398940621,1766010644475,-1000.0,0.00016149,2]
[398940622,1766010644485,-1000.0,0.00016149,2]
[398940623,1766010644494,-1000.0,0.00016149,2]
[398940624,1766010644504,-1000.0,0.00016149,2]
[398940625,1766010644513,-1000.0,0.00016149,2]
[398940626,1766010644523,-1000.0,0.00016149,2]
[398940627,1766010644532,-1000.0,0.00016149,2]
[398940628,1766010644542,-200.0,0.00016149,2]
[398940629,1766010644552,-1000.0,0.00016149,2]
[398940630,1766010644561,-207.4,0.00016149,2]
[398940631,1766010644571,-1000.0,0.00016149,2]
[398940632,1766010644580,-215.0738,0.00016149,2]
[398940633,1766010644590,-1065.72949719,0.00016149,2]
[398940634,1766010644599,-223.0315306,0.00016149,2]
[398940635,1766010644610,-231.28369723,0.00016149,2]
[398940636,1766010644620,-239.84119403,0.00016149,2]
[398940637,1766010644631,-248.71531821,0.00016149,2]
[398940638,1766010644640,-257.91778498,0.00016149,2]
[398940639,1766010644650,-251.74379345,0.00016149,2]
[398940640,1766010644660,-150.0,0.00016156,2]
[398940641,1766010644672,-150.0,0.00016157,2]
[398940642,1766010644683,-150.0,0.00016163,2]
[398940643,1766010644692,-5621.00156351,0.00016163,2]
[398940644,1766010644702,-150.0,0.00016164,2]
[398940645,1766010644712,-160.29,0.00016169,2]
[398940646,1766010644721,-150.0,0.00016171,2]
[398940647,1766010644730,-150.0,0.00016182,2]
[398940648,1766010644743,-150.0,0.00016194,2]
[398940649,1766010644752,-150.0,0.00016194,2]
[398940650,1766010644762,-150.0,0.00016196,2]
[398940651,1766010644771,-5000.00284066,0.000162,5]
[398940652,1766010644782,-150.0,0.00016208,2]
[398940653,1766010644792,-150.0,0.00016214,2]
[398940654,1766010644802,-150.0,0.00016219,2]
[398940655,1766010644813,-698.29122791,0.00016219,2]
[398940656,1766010644822,-500.0,0.0001623,2]
[398940657,1766010644832,-500.0,0.0001623,2]
[398940658,1766010644841,-500.0,0.0001623,2]
[398940659,1766010644852,-500.0,0.0001623,2]
[398940660,1766010644863,-500.0,0.0001623,2]
[398940661,1766010644874,-500.0,0.0001623,2]
[398940662,1766010644885,-500.0,0.0001623,2]
[398940663,1766010644896,-150.0,0.0001623,2]
[398940664,1766010644906,-295.67984655,0.0001623,2]
[398940665,1766010644919,-500.0,0.0001623,2]
[398940666,1766010644930,-150.0,0.0001623,2]
[398940667,1766010644939,-500.0,0.0001623,2]
[398940668,1766010644950,-500.0,0.0001623,2]
[398940669,1766010644962,-500.0,0.0001623,2]
[398940670,1766010644972,-489.10428919,0.0001623,2]
[398940671,1766010644984,-150.0,0.00016231,2]
[398940672,1766010644995,-150.0,0.00016231,2]
[398940673,1766010645006,-4941.46894514,0.00016233,2]
[398940674,1766010645016,-150.0,0.00016236,2]
[398940675,1766010645026,-150.0,0.00016239,2]
[398940676,1766010645036,-150.0,0.00016258,2]
[398940677,1766010645046,-150.0,0.00016266,2]
[398940678,1766010645056,-150.0,0.00016269,2]
[398940679,1766010645067,-150.0,0.00016271,2]
[398940680,1766010645080,-150.0,0.00016274,2]
[398940681,1766010645090,-150.0,0.00016275,2]
[398940682,1766010645101,-150.0,0.00016279,2]
[398940683,1766010645112,-150.0,0.00016307,2]
[398940684,1766010645123,-150.0,0.00016307,2]
[398940685,1766010645132,-150.0,0.00016307,2]
[398940686,1766010645142,-150.0,0.00016307,2]
[398940687,1766010645152,-150.0,0.00016315,2]
[398940688,1766010645161,-150.0,0.00016317,2]
[398940689,1766010645172,-150.0,0.00016329,2]
[398940690,1766010645181,-207.4,0.00016341,2]
[398940691,1766010645191,-4941.46894514,0.00016344,2]
[398940692,1766010645201,-150.0,0.00016345,2]
[398940693,1766010645210,-5621.00156351,0.00016347,2]
[398940694,1766010645220,-150.0,0.00016349,2]
[398940695,1766010645230,-150.0,0.00016354,2]
[398940696,1766010645239,-298.0,0.00016359,2]
[398940697,1766010645250,-150.0,0.0001636,2]
[398940698,1766010645259,-503.30440339,0.00016367,2]
[398940699,1766010645269,-500.0,0.00016367,2]
[398940700,1766010645279,-500.0,0.00016367,2]
[398940701,1766010645288,-500.0,0.00016367,2]
[398940702,1766010645298,-500.0,0.00016367,2]
[398940703,1766010645308,-500.0,0.00016367,2]
[398940704,1766010645317,-500.0,0.00016367,2]
[398940705,1766010645327,-150.0,0.00016367,2]
[398940706,1766010645337,-500.0,0.00016367,2]
[398940707,1766010645347,-150.0,0.00016367,2]
[398940708,1766010645357,-150.0,0.00016367,2]
[398940709,1766010645366,-500.0,0.00016367,2]
[398940710,1766010645376,-500.0,0.00016367,2]
[398940711,1766010645386,-150.0,0.00016369,2]
[398940712,1766010645395,-150.0,0.00016375,2]
[398940713,1766010645405,-150.0,0.00016382,2]
[398940714,1766010645414,-150.0,0.00016384,2]
[398940715,1766010645424,-698.29122791,0.00016389,2]
[398940716,1766010645433,-150.0,0.00016394,2]
[398940717,1766010645443,-293.2,0.00016398,2]
[398940718,1766010645453,-1000.0,0.000164,2]
[398940719,1766010645462,-228.0,0.000164,2]
[398940720,1766010645472,-319.0,0.000164,2]
[398940721,1766010645482,-182.0,0.000164,2]
[398940722,1766010645491,-183.11478265,0.000164,2]
[398940723,1766010645501,-295.82,0.00016409,2]
[398940724,1766010645511,-150.0,0.0001642,2]
[398940725,1766010645521,-150.0,0.0001642,2]
[398940726,1766010645530,-150.0,0.0001642,2]
[398940727,1766010645540,-150.0,0.0001642,2]
[398940728,1766010645550,-150.0,0.0001642,2]
[398940729,1766010645560,-201.34403204,0.00016428,2]
[398940730,1766010645569,-150.0,0.00016433,2]
[398940731,1766010645578,-282.25650796,0.00016437,2]
[398940732,1766010645588,-500.0,0.00016438,2]
[398940733,1766010645597,-500.0,0.00016438,2]
[398940734,1766010645607,-500.0,0.00016438,2]
[398940735,1766010645616,-500.0,0.00016438,2]
[398940736,1766010645626,-500.0,0.00016438,2]
[398940737,1766010645635,-500.0,0.00016438,2]
[398940738,1766010645645,-500.0,0.00016438,2]
[398940739,1766010645654,-500.0,0.00016438,2]
[398940740,1766010645664,-500.0,0.00016438,2]
[398940741,1766010645674,-500.0,0.00016438,2]
[398940742,1766010645684,-500.0,0.00016438,2]
[398940743,1766010645694,-500.0,0.00016438,2]
[398940744,1766010645704,-500.0,0.00016438,2]
[398940745,1766010645714,-500.0,0.00016438,2]
[398940746,1766010645724,-500.0,0.00016438,2]
[398940747,1766010645734,-500.0,0.00016438,2]
[398940748,1766010645749,-500.0,0.00016438,2]
[398940749,1766010645758,-500.0,0.00016438,2]
[398940750,1766010645768,-500.0,0.00016438,2]
[398940751,1766010645777,-500.0,0.00016438,2]
[398940752,1766010645788,-500.0,0.00016438,2]
[398940753,1766010645797,-500.0,0.00016438,2]
[398940754,1766010645807,-500.0,0.00016438,2]
[398940755,1766010645818,-500.0,0.00016438,2]
[398940756,1766010645828,-500.0,0.00016438,2]
[398940757,1766010645839,-500.0,0.00016438,2]
[398940758,1766010645850,-500.0,0.00016438,2]
[398940759,1766010645861,-500.0,0.00016438,2]
[398940760,1766010645871,-500.0,0.00016438,2]
[398940761,1766010645880,-500.0,0.00016438,2]
[398940762,1766010645890,-900.0,0.00016438,2]
[398940763,1766010645900,-225.73,0.00016438,2]
[398940764,1766010645910,-150.0,0.00016438,2]
[398940765,1766010645919,-800.0,0.00016438,2]
[398940766,1766010645929,-150.0,0.00016443,2]
[398940767,1766010645939,-150.0,0.0001645,2]
[398940768,1766010645949,-4941.46894514,0.00016456,2]
[398940769,1766010645958,-150.0,0.00016458,2]
[398940770,1766010645968,-150.0,0.00016472,2]
[398940771,1766010645978,-150.0,0.00016473,2]
[398940772,1766010645988,-150.0,0.00016491,2]
[398940773,1766010645999,-736.0,0.00016491,2]
[398940774,1766010646010,-150.0,0.00016493,2]
[398940775,1766010646020,-600.0,0.00016494,2]
[398940776,1766010646030,-150.0,0.00016496,2]
[398940777,1766010646040,-150.0,0.00016501,2]
[398940778,1766010646050,-500.0,0.00016504,2]
[398940780,1766010646059,-500.0,0.00016504,2]
[398940781,1766010646069,-500.0,0.00016504,2]
[398940782,1766010646081,-500.0,0.00016504,2]
[398940783,1766010646091,-500.0,0.00016504,2]
[398940784,1766010646101,-179.96290479,0.00016504,2]
[398940785,1766010646111,-200.0,0.00016504,2]
[398940786,1766010646120,-151.73216425,0.00016504,2]
[398940787,1766010646130,-500.0,0.00016504,2]
[398940788,1766010646140,-500.0,0.00016504,2]
[398940789,1766010646150,-166.66,0.00016506,2]
[398940790,1766010646159,-150.0,0.00016511,2]
[398940791,1766010646169,-150.0,0.00016512,2]
[398940792,1766010646180,-150.0,0.00016523,2]
[398940793,1766010646189,-151.0,0.00016529,2]
[398940794,1766010646199,-5621.00156351,0.00016532,2]
[398940795,1766010646209,-150.0,0.00016533,2]
[398940796,1766010646219,-150.0,0.00016533,2]
[398940797,1766010646229,-150.0,0.00016539,2]
[398940798,1766010646239,-150.0,0.00016548,2]
[398940799,1766010646249,-150.0,0.00016552,2]
[398940800,1766010646260,-698.29122791,0.0001656,2]
[398940801,1766010646270,-150.0,0.00016562,2]
[398940802,1766010646280,-4941.46894514,0.00016567,2]
[398940803,1766010646290,-1009.9852894,0.00016568,2]
[398940804,1766010646300,-1000.0,0.00016568,2]
[398940805,1766010646309,-1000.0,0.00016568,2]
[398940806,1766010646319,-1322.88830232,0.00016568,2]
[398940807,1766010646329,-150.0,0.00016571,2]
[398940808,1766010646339,-150.0,0.00016575,2]
[398940809,1766010646349,-150.0,0.00016579,2]
[398940810,1766010646359,-177.418,0.00016587,2]
[398940811,1766010646368,-150.0,0.00016591,2]
[398940812,1766010646378,-358.48883582,0.000166,2]
[398940813,1766010646387,-1544.0,0.000166,2]
[398940814,1766010646398,-150.0,0.00016603,2]
[398940815,1766010646408,-150.0,0.00016609,2]
[398940816,1766010646418,-150.0,0.00016609,2]
[398940817,1766010646428,-150.0,0.00016626,2]
[398940818,1766010646438,-150.0,0.00016629,2]
[398940819,1766010646448,-150.0,0.00016631,2]
[398940820,1766010646457,-150.0,0.00016632,2]
[398940821,1766010646467,-298.0,0.0001664,2]
[398940822,1766010646477,-227.79959508,0.00016641,2]
[398940823,1766010646486,-500.0,0.00016641,2]
[398940824,1766010646496,-500.0,0.00016641,2]
[398940825,1766010646506,-328.81530924,0.00016641,2]
[398940826,1766010646516,-500.0,0.00016641,2]
[398940827,1766010646525,-500.0,0.00016641,2]
[398940828,1766010646535,-150.0,0.00016641,2]
[398940829,1766010646545,-150.0,0.00016647,2]
[398940830,1766010646556,-150.0,0.00016647,2]
[398940857,1766010646885,-150.0,0.00016647,2]
[398940859,1766010646894,-150.0,0.00016647,2]
[398940861,1766010646904,-150.0,0.00016658,2]
[398940863,1766010646913,-4389.71388712,0.0001666,2]
[398940865,1766010646922,-298.0,0.0001667,2]
[398940867,1766010646931,-150.0,0.0001667,2]
[398940869,1766010646940,-150.0,0.00016677,2]
[398940871,1766010646949,-4941.46894514,0.00016678,2]
[398940873,1766010646958,-150.0,0.00016684,2]
[398940875,1766010646968,-298.0,0.00016689,2]
[398940877,1766010646977,-553.64373807,0.00016697,2]
[398940879,1766010646986,-2345.0,0.00016697,2]
[398940881,1766010646995,-150.0,0.00016703,2]
[398940883,1766010647004,-150.0,0.0001671,2]
[398940885,1766010647013,-166.21,0.00016712,2]
[398940887,1766010647022,-150.0,0.00016712,2]
[398940889,1766010647031,-150.0,0.00016715,2]
[398940891,1766010647040,-5621.00156351,0.00016716,2]
[398940893,1766010647049,-150.0,0.00016718,2]
[398940895,1766010647058,-150.0,0.00016722,2]
[398940897,1766010647067,-150.0,0.00016729,2]
[398940899,1766010647076,-698.29122791,0.0001673,2]
[398940901,1766010647085,-150.0,0.00016744,2]
[398940904,1766010647094,-150.0,0.00016749,2]
[398940905,1766010647103,-150.0,0.0001676,2]
[398940908,1766010647114,-150.0,0.0001676,2]
[398940910,1766010647123,-150.0,0.00016767,2]
[398940912,1766010647132,-150.0,0.00016774,2]
[398940914,1766010647141,-500.0,0.00016778,2]
[398940916,1766010647150,-500.0,0.00016778,2]
[398940918,1766010647158,-210.41849283,0.00016778,2]
[398940920,1766010647167,-500.0,0.00016778,2]
[398940922,1766010647176,-150.0,0.00016778,2]
[398940924,1766010647185,-150.0,0.0001678,2]
[398940926,1766010647194,-150.0,0.00016782,2]
[398940928,1766010647203,-298.0,0.00016785,2]
[398940930,1766010647212,-150.0,0.00016789,2]
[398940932,1766010647220,-4941.46894514,0.00016789,2]
[398940934,1766010647230,-150.0,0.00016798,2]
[398940936,1766010647239,-150.0,0.00016798,2]
[398940938,1766010647248,-150.0,0.00016807,2]
[398940940,1766010647257,-150.0,0.00016822,2]
[398940942,1766010647267,-150.0,0.00016828,2]
[398940944,1766010647276,-150.0,0.00016832,2]
[398940946,1766010647285,-150.0,0.00016835,2]
[398940948,1766010647294,-150.0,0.00016845,2]
[398940950,1766010647304,-150.0,0.0001685,2]
[398940952,1766010647313,-200.0,0.00016863,2]
[398940954,1766010647322,-200.0,0.00016864,2]
[398940956,1766010647331,-200.0,0.00016864,2]
[398940958,1766010647340,-200.0,0.00016864,2]
[398940960,1766010647349,-1000.0,0.00016867,2]
[398940962,1766010647358,-150.0,0.00016868,2]
[398940964,1766010647367,-150.0,0.00016873,2]
[398940966,1766010647376,-150.0,0.00016873,2]
[398940968,1766010647385,-150.0,0.00016877,2]
[398940970,1766010647394,-150.0,0.00016883,2]
[398940972,1766010647403,-298.0,0.00016889,2]
[398940974,1766010647413,-150.0,0.00016897,2]
[398940976,1766010647422,-10000.0,0.000169,2]
[398940978,1766010647431,-2539.3351,0.000169,2]
[398940980,1766010647440,-5621.00156351,0.000169,2]
[398940982,1766010647449,-4941.46894514,0.000169,2]
[398940984,1766010647458,-1949.78015876,0.000169,2]
[398940986,1766010647467,-698.29122791,0.000169,2]
[398940988,1766010647476,-4632.69799175,0.000169,2]
[398940990,1766010647485,-201.34403204,0.000169,2]
[398940992,1766010647494,-6322.0,0.000169,2]
[398940994,1766010647503,-150.0,0.00016907,2]
[398940996,1766010647512,-150.0,0.00016911,2]
[398940998,1766010647522,-500.0,0.00016915,2]
[398940999,1766010647531,-500.0,0.00016915,2]
[398941001,1766010647540,-500.0,0.00016915,2]
[398941003,1766010647549,-150.0,0.00016915,2]
[398941006,1766010647558,-150.0,0.00016916,2]
[398941008,1766010647568,-150.0,0.00016918,2]
[398941010,1766010647576,-150.0,0.00016932,2]
[398941011,1766010647585,-150.0,0.00016935,2]
[398941013,1766010647594,-167.14674989,0.00016938,2]
[398941015,1766010647603,-239.0,0.0001694,2]
[398941017,1766010647612,-298.0,0.00016943,2]
[398941019,1766010647621,-150.0,0.00016947,2]
[398941021,1766010647630,-150.0,0.00016949,2]
[398941023,1766010647638,-500.0,0.00016966,2]
[398941025,1766010647647,-110435.596928,0.00016967,2]
[398941027,1766010647656,-2612.0903919,0.00016967,2]
[398941029,1766010647665,-147247.4625705,0.00016967,2]
[398941031,1766010647674,-3482.7871891,0.00016967,2]
[398941033,1766010647683,-331306.7907837,0.00016967,2]
[398941035,1766010647692,-150.0,0.00016973,2]
[398941038,1766010647701,-150.0,0.00016973,2]
[398941040,1766010647711,-500.0,0.00016983,2]
[398941041,1766010647719,-3205.153,0.00016986,2]
[398941044,1766010647729,-500.0,0.00016986,2]
[398941045,1766010647740,-331869.79,0.00016986,2]
[398941048,1766010647749,-187.73749217,0.00016986,2]
[398941050,1766010647759,-150.0,0.00016986,2]
[398941052,1766010647768,-150.0,0.00016986,2]
[398941054,1766010647777,-150.00000001,0.00016986,2]
[398941056,1766010647786,-150.65844906,0.00016986,2]
[398941058,1766010647795,-160.8607052,0.00016986,2]
[398941060,1766010647804,-280.62987413,0.00016986,2]
[398941062,1766010647814,-150.0,0.00016986,2]
[398941064,1766010647824,-151.17525831,0.00016986,2]
[398941066,1766010647833,-150.91550183,0.00016986,2]
[398941068,1766010647842,-153.15599333,0.00016986,2]
[398941070,1766010647851,-150.0,0.00016986,2]
[398941072,1766010647860,-150.00000001,0.00016986,2]
[398941074,1766010647869,-1863.87983717,0.0001699,2]
[398941076,1766010647878,-1863.87983717,0.0001699,2]
[398941078,1766010647888,-151.0,0.00016997,2]
[398941080,1766010647897,-1194.59810132,0.00016999,5]
[398941082,1766010647906,-1194.59810132,0.00016999,5]
[398941084,1766010647915,-322.20752832,0.00016999,2]
[398941086,1766010647925,-2651228.59712977,0.00017,2]
[398941106,1766010648099,-3864.10583401,0.00017,2]
[398941109,1766010648110,-601.50114901,0.00017,2]
[398941111,1766010648120,-3094.04312261,0.00017,2]
[398941113,1766010648131,-1291.5451001,0.00017,2]
[398941115,1766010648142,-432.81,0.00017,2]
[398941117,1766010648152,-20310.72427912,0.00017,2]
[398941119,1766010648163,-13473.14504517,0.00017,2]
[398941122,1766010648178,-1711.20790717,0.00017,2]
[398941124,1766010648189,-33514.33954633,0.00017,2]
[398941127,1766010648199,-270.00005,0.00017,2]
[398941129,1766010648210,-336.3733244,0.00017,2]
[398941131,1766010648226,-418.54789703,0.00017,2]
[398941133,1766010648237,-518.41009963,0.00017,2]
[398941137,1766010648264,-3730.46264169,0.00017,2]
[398941139,1766010648275,-265.713797,0.00017,2]
[398941141,1766010648287,-4227.19490143,0.00017,2]
[398941144,1766010648298,-617.05038178,0.00017,2]
[398941151,1766010648410,-7836.2711754,0.00016756,2]
[398941152,1766010648420,-102.07781501,0.00017,2]
[398941153,1766010648593,-1294.93495063,0.00015928,2]
[398941154,1766010648616,-567.14,0.00015928,2]
[398941155,1766010648990,-699.99703575,0.00015928,2]
[398941156,1766010649000,-570.33467883,0.000169,2]
[398941157,1766010649010,-2666.5123894,0.00017,2]
[398941158,1766010649029,-431.431,0.00017,2]
[398941159,1766010649040,-2974.27246815,0.00017,2]
[398941160,1766010713751,432.6189,0.00011976,2]
[398941171,1766011803353,178.2,0.00022,30]
[398941173,1766011831339,-289.14843026,0.00012178,2]
[398941174,1766011831399,-113.69007419,0.00012178,2]
[398941175,1766011831408,-624.15992581,0.00012216,2]
[398941176,1766011831463,-1614.4797699,0.00012216,2]
[398941177,1766011831520,-1546.97960329,0.00012216,2]
[398941178,1766011831530,-1494.33335914,0.00012278,2]
[398941179,1766011831541,-105.66664086,0.00012278,2]
[398941180,1766011831551,-402.83850444,0.00012439,2]
[398941181,1766011831560,-250.0,0.00012661,2]
[398941182,1766011831569,-402.83850444,0.00012699,2]
[398941183,1766011831579,-250.0,0.00012716,2]
[398941185,1766011831588,-208.18,0.00012781,2]
[398941187,1766011831596,-300.0,0.00012798,2]
[398941188,1766011831606,-1200.0,0.00012798,2]
[398941190,1766011831615,-300.0,0.00012798,2]
[398941192,1766011831624,-1580.47635026,0.00012799,2]
[398941266,1766011837415,-500.0,0.00012798,2]
[398941267,1766011837426,-13.46651266,0.00012798,2]
[398941268,1766011837439,-486.53348734,0.00012798,2]
[398941269,1766011837447,-530.02719686,0.00012798,2]
[398941270,1766011837456,-170.16370788,0.00012798,2]
[398941271,1766011837465,-156.34868837,0.00012798,2]
[398941272,1766011837476,-343.65131163,0.00012798,2]
[398941273,1766011837485,-200.08279324,0.00012798,2]
[398941274,1766011837495,-500.0,0.00012798,2]
[398941275,1766011837504,-500.0,0.00012798,2]
[398941276,1766011837513,-500.0,0.00012798,2]
[398941277,1766011837522,-500.0,0.00012798,2]
[398941278,1766011837531,-500.0,0.00012798,2]
[398941279,1766011837540,-500.0,0.00012798,2]
[398941280,1766011837549,-500.0,0.00012798,2]
[398941281,1766011837558,-500.0,0.00012798,2]
[398941282,1766011837567,-500.0,0.00012798,2]
[398941283,1766011837576,-500.0,0.00012798,2]
[398941284,1766011837585,-500.0,0.00012798,2]
[398941285,1766011837594,-500.0,0.00012798,2]
[398941286,1766011837603,-500.0,0.00012798,2]
[398941287,1766011837613,-500.0,0.00012798,2]
[398941288,1766011837622,-500.0,0.00012798,2]
[398941289,1766011837631,-500.0,0.00012798,2]
[398941290,1766011837640,-500.0,0.00012798,2]
[398941292,1766011837649,-500.0,0.00012798,2]
[398941294,1766011837658,-500.0,0.00012798,2]
[398941296,1766011837667,-500.0,0.00012798,2]
[398941298,1766011837676,-500.0,0.00012798,2]
[398941300,1766011837685,-500.0,0.00012798,2]
[398941302,1766011837694,-500.0,0.00012798,2]
[398941303,1766011837703,-500.0,0.00012798,2]
[398941305,1766011837712,-500.0,0.00012798,2]
[398941307,1766011837721,-500.0,0.00012798,2]
[398941309,1766011837730,-500.0,0.00012798,2]
[398941311,1766011837739,-500.0,0.00012798,2]
[398941313,1766011837747,-500.0,0.00012798,2]
[398941315,1766011837756,-500.0,0.00012798,2]
[398941317,1766011837766,-500.0,0.00012798,2]
[398941319,1766011837775,-500.0,0.00012798,2]
[398941321,1766011837784,-500.0,0.00012798,2]
[398941324,1766011837793,-266.14031255,0.00012798,2]
[398941326,1766011837802,-500.0,0.00012798,2]
[398941328,1766011837811,-500.0,0.00012798,2]
[398941329,1766011837819,-500.0,0.00012798,2]
[398941331,1766011837830,-500.0,0.00012798,2]
[398941334,1766011837840,-103417.93120351,0.00012799,2]
[398941336,1766011837851,-121242.72924278,0.00012799,2]
[398941338,1766011837862,-362417.78928566,0.00012799,2]
[398941340,1766011837873,-171341.07391779,0.00012799,2]
[398941342,1766011837882,-6685.9681,0.00012799,2]
[398941344,1766011837891,-2500.0,0.000128,2]
[398941346,1766011837900,-150.0,0.00012872,2]
[398941348,1766011837909,-17541.63723206,0.00012873,2]
[398941350,1766011837918,-1659.55,0.00012892,2]
[398941352,1766011837926,-9999.99,0.00012892,2]
[398941354,1766011837935,-200.0,0.00012892,2]
[398941356,1766011837944,-500.0,0.00012892,2]
[398941358,1766011837953,-151.0,0.00012892,2]
[398941360,1766011837962,-151.0,0.00012892,2]
[398941362,1766011837971,-151.0,0.00012892,2]
[398941364,1766011837980,-151.0,0.00012892,2]
[398941366,1766011837988,-151.0,0.00012892,2]
[398941368,1766011837997,-151.0,0.00012892,2]
[398941370,1766011838007,-151.0,0.00012892,2]
[398941372,1766011838016,-151.0,0.00012892,2]
[398941374,1766011838025,-151.0,0.00012892,2]
[398941376,1766011838034,-151.0,0.00012892,2]
[398941378,1766011838043,-151.0,0.00012892,2]
[398941380,1766011838052,-151.0,0.00012892,2]
[398941382,1766011838064,-200.0,0.00012892,2]
[398941384,1766011838073,-151.0,0.00012892,2]
[398941386,1766011838082,-200.0,0.00012892,2]
[398941388,1766011838091,-150.99,0.00012897,2]
[398941390,1766011838101,-299.99,0.00012897,2]
[398941392,1766011838110,-7932.56,0.00012899,2]
[398941393,1766011838122,-150.99,0.00012899,2]
[398941395,1766011838141,-500.0,0.00012899,2]
[398941397,1766011838158,-3455.333,0.00012899,2]
[398941399,1766011838168,-177.418,0.00012899,2]
[398941401,1766011838177,-20065.17829207,0.00012973,2]
[398941403,1766011838186,-1659.55,0.00013166,2]
[398941405,1766011838196,-500.0,0.00013173,2]
[398941407,1766011838205,-23078.4775763,0.00013267,2]
[398941409,1766011838214,-17541.63723205,0.0001332,2]
[398941411,1766011838225,-498.60294116,0.00013373,2]
[398941414,1766011838237,-500.0,0.00013373,2]
[398941416,1766011838246,-549.65597916,0.00013373,2]
[398941418,1766011838256,-500.0,0.00013373,2]
[398941419,1766011838265,-634.05894568,0.00013373,2]
[398941421,1766011838275,-556.87569377,0.00013373,2]
[398941424,1766011838284,-500.0,0.00013373,2]
[398941425,1766011838293,-500.35110535,0.00013373,2]
[398941427,1766011838303,-500.0,0.00013373,2]
[398941429,1766011838313,-502.09208963,0.00013373,2]
[398941457,1766011838637,-160.16120282,0.00013373,2]
[398941458,1766011838670,-500.0,0.00013373,2]
[398941459,1766011838679,-500.0,0.00013373,2]
[398941460,1766011838688,-500.0,0.00013373,2]
[398941461,1766011838698,-500.0,0.00013373,2]
[398941462,1766011838707,-216.18014628,0.00013373,2]
[398941463,1766011838716,-562.4542945,0.00013373,2]
[398941464,1766011838725,-500.1936276,0.00013373,2]